bitfinex-derivatives/quotes_ETHF0:USTF0_20250708
["timestamp","ask_amount","ask_price","bid_price","bid_amount"]
[1751974874289,2.49145,2577.7,2577.6,3.53476626]
[1751974875192,2.49145,2577.7,2577.6,1.41155]
[1751974876390,1.7156,2577.7,2577.6,1.41155]
[1751974877994,2.49147,2577.7,2577.6,0.77588]
[1751974878193,3.87567,2577.7,2577.6,0.77588]
[1751974881899,2.16007,2577.7,2577.6,0.77588]
[1751974882194,1.93971,2577.6,2577.2,3.2078]
[1751974882397,0.77599,2577.3,2577.2,0.77597]
[1751974882697,2.48859,2577.3,2577.2,0.77597]
[1751974885393,2.48859,2577.3,2577.2,1.42267]
[1751974885595,3.14509,2577.3,2577.2,1.42267]
[1751974885796,3.14509,2577.3,2577.2,0.77597]
[1751974886095,3.14509,2577.3,2577.2,1.42267]
[1751974886898,3.14509,2577.3,2577.2,0.77597]
[1751974891999,0.77606,2577.1,2577.0,0.776]
[1751974892300,0.7761,2577.0,2576.9,0.77605]
[1751974892498,0.77615,2576.9,2576.8,0.7761]
[1751974892704,2.48875,2576.9,2576.8,0.7761]
[1751974893595,2.9844,2576.9,2576.8,1.4228]
[1751974893796,2.48869,2576.9,2576.8,1.4228]
[1751974893996,0.77609,2576.9,2576.8,0.7761]
[1751974894205,2.48869,2576.9,2576.8,0.7761]
[1751974894502,2.48869,2576.9,2576.8,1.4228]
[1751974894699,2.48869,2576.9,2576.8,0.7761]
[1751974894899,2.48869,2576.9,2576.8,1.4228]
[1751974895799,0.77609,2576.9,2576.8,1.4228]
[1751974896003,3.2078,2577.1,2577.0,0.77606]
[1751974896203,3.899,2577.1,2577.0,2.89927626]
[1751974896394,0.6912,2577.1,2577.0,3.54597626]
[1751974896600,1.46723,2577.1,2577.0,3.54597626]
[1751974896999,0.6912,2577.1,2577.0,3.54597626]
[1751974898000,1.0214,2577.3,2577.2,0.776]
[1751974898201,0.6715,2577.4,2577.3,0.77597]
[1751974898402,3.2078,2577.5,2577.4,0.77594]
[1751974898705,3.899,2577.5,2577.4,3.54585626]
[1751974899595,3.899,2577.5,2577.4,2.89915626]
[1751974899804,3.899,2577.5,2577.4,3.54585626]
[1751974901207,0.6912,2577.5,2577.4,3.54585626]
[1751974901402,0.6912,2577.5,2577.4,4.23265626]
[1751974901907,0.6845,2577.7,2577.6,0.77588]
[1751974902100,1.3757,2577.7,2577.6,3.54579626]
[1751974902300,0.6845,2577.7,2577.6,2.89909626]
[1751974902501,0.6845,2577.7,2577.6,0.77588]
[1751974902502,2.15155,2577.7,2577.6,0.77588]
[1751974902696,3.17295,2577.7,2577.6,1.42258]
[1751974905809,2.3971,2577.7,2577.6,1.42258]
[1751974906205,4.2292,2577.9,2577.8,0.77582]
[1751974906405,6.16560136,2577.9,2577.8,2.89903626]
[1751974906805,6.16560136,2577.9,2577.8,3.54573626]
[1751974907105,2.95780136,2577.9,2577.8,3.54573626]
[1751974907409,2.95684246,2577.9,2577.8,3.54573626]
[1751974907709,1.355,2577.9,2577.8,3.54573626]
[1751974908105,2.95682977,2577.9,2577.8,3.54573626]
[1751974909007,1.355,2577.9,2577.8,3.54573626]
[1751974909304,0.77574,2578.1,2578.0,0.77576]
[1751974909509,2.29286033,2578.1,2578.0,2.89897626]
[1751974909708,3.06859033,2578.1,2578.0,2.12321626]
[1751974910305,0.77579,2577.9,2577.8,2.12321626]
[1751974910504,0.77579,2577.9,2577.8,2.81021626]
[1751974911510,0.77579,2577.9,2577.8,3.58603626]
[1751974911909,0.77579,2577.9,2577.8,2.89903626]
[1751974912811,0.9856,2578.1,2577.8,2.81021626]
[1751974913111,0.6912,2578.1,2578.0,2.89894626]
[1751974913312,1.46693,2578.1,2578.0,3.58594626]
[1751974913512,1.46693,2578.1,2578.0,3.58597626]
[1751974914912,2.45253,2578.1,2578.0,1.46276]
[1751974915515,0.77569,2578.4,2578.3,0.77564]
[1751974915716,4.68317025,2578.4,2578.3,0.77564]
[1751974916117,4.68317025,2578.4,2578.3,1.46264]
[1751974918018,3.08819,2578.4,2578.3,1.46264]
[1751974921724,3.08819,2578.4,2578.3,0.687]
[1751974921918,0.77567,2578.3,2578.2,0.77569]
[1751974922120,0.77573,2578.1,2578.0,2.78841626]
[1751974922725,1.46693,2578.1,2578.0,3.47541626]
[1751974922922,2.45253,2578.1,2578.0,0.687]
[1751974923117,1.6768,2578.1,2577.5,3.8951]
[1751974923318,0.77597,2577.4,2577.3,0.77596]
[1751974923518,1.46717,2577.4,2577.3,0.687]
[1751974923723,0.6912,2577.4,2577.3,3.58618626]
[1751974923921,0.6912,2577.4,2577.3,2.89918626]
[1751974924327,0.6912,2577.4,2577.3,3.58618626]
[1751974924526,1.46714,2577.4,2577.3,2.89918626]
[1751974924728,1.46714,2577.4,2577.3,3.58618626]
[1751974924928,1.46714,2577.4,2577.3,2.89918626]
[1751974925230,1.46714,2577.4,2577.3,3.58618626]
[1751974925628,2.45274,2577.4,2577.3,3.58618626]
[1751974925828,2.45274,2577.4,2577.3,0.687]
[1751974926228,2.45274,2577.4,2577.3,1.46297]
[1751974927033,1.46714,2577.4,2577.3,1.46297]
[1751974927530,1.46714,2577.4,2577.3,3.58618626]
[1751974931835,2.45274,2577.4,2577.3,3.58618626]
[1751974932136,0.77603,2577.2,2577.1,0.77601]
[1751974932335,0.77603,2577.2,2577.1,1.46301]
[1751974932532,0.77603,2577.2,2577.1,0.77601]
[1751974932733,1.6768,2577.2,2576.6,4.59606853]
[1751974933032,0.6359,2577.1,2576.6,0.6686]
[1751974933229,0.77618,2576.7,2576.6,1.46316]
[1751974933436,1.46738,2576.7,2576.6,0.77616]
[1751974933638,3.08888,2576.7,2576.6,1.46316]
[1751974934027,3.08888,2576.7,2576.6,0.687]
[1751974934232,2.3127,2576.7,2576.6,0.687]
[1751974934439,2.10325,2576.7,2576.6,2.89939626]
[1751974934637,2.10325,2576.7,2576.6,3.58639626]
[1751974934937,2.10325,2576.7,2576.6,2.89939626]
[1751974935236,1.3271,2576.7,2576.6,3.58639626]
[1751974937634,3.2078,2577.1,2577.0,0.77606]
[1751974937840,1.6768,2577.1,2577.0,0.77606]
[1751974938140,0.77601,2577.2,2577.1,0.776]
[1751974938342,1.46721,2577.2,2577.1,3.58621626]
[1751974939938,0.6912,2577.2,2577.1,3.58621626]
[1751974940538,0.9856,2577.3,2577.2,0.776]
[1751974940739,1.6221,2577.3,2577.2,0.776]
[1751974941037,2.39807,2577.3,2577.2,0.776]
[1751974941335,3.2078,2577.4,2577.1,2.81021626]
[1751974941531,2.31961712,2578.0,2577.7,0.77584]
[1751974941532,0.77586,2577.8,2577.7,0.77584]
[1751974941732,2.23604318,2577.8,2577.7,2.89905626]
[1751974942038,3.2078,2577.9,2577.8,0.77582]
[1751974942237,3.8443,2577.9,2577.8,1.45362]
[1751974942740,3.8443,2577.9,2577.8,0.77582]
[1751974942933,3.8443,2577.9,2577.8,1.45362]
[1751974943133,0.6365,2577.9,2577.8,1.45362]
[1751974947044,1.41229,2577.9,2577.8,0.6778]
[1751974947945,2.41069,2577.9,2577.8,1.45362]
[1751974948943,1.41229,2577.9,2577.8,1.45362]
[1751974949243,0.77592,2577.6,2577.3,3.2078]
[1751974949539,0.9984,2577.5,2577.3,3.8856]
[1751974949747,0.776,2577.3,2577.2,0.77597]
[1751974949946,1.4125,2577.3,2577.2,0.77597]
[1751974950146,2.4109,2577.3,2577.2,1.45377]
[1751974950445,2.4109,2577.3,2577.2,0.77597]
[1751974950643,0.776,2577.2,2577.1,0.77602]
[1751974950843,2.4109,2577.2,2577.1,0.77602]
[1751974951839,2.4109,2577.2,2577.1,1.45382]
[1751974951840,0.6365,2577.2,2577.1,1.45382]
[1751974952040,3.98372,2577.5,2577.4,0.77594]
[1751974952539,5.61862,2577.5,2577.4,0.77594]
[1751974953345,2.41082,2577.5,2577.4,0.77594]
[1751974953842,5.61862,2577.5,2577.4,0.77594]
[1751974954835,0.77599,2577.4,2577.3,0.77595]
[1751974955038,1.41249,2577.4,2577.3,1.45375]
[1751974955241,2.41089,2577.4,2577.3,1.45375]
[1751974960446,1.6349,2577.4,2577.3,1.45375]
[1751974960647,2.41084,2577.4,2577.3,1.45375]
[1751974962251,0.77594,2577.4,2577.3,0.77595]
[1751974962451,2.41084,2577.4,2577.3,1.45375]
[1751974962848,2.41084,2577.4,2577.3,0.77595]
[1751974963046,2.41084,2577.4,2577.3,1.45375]
[1751974963551,1.6349,2577.4,2577.3,1.45375]
[1751974963751,0.6365,2577.4,2577.3,1.45375]
[1751974963952,2.41084,2577.4,2577.3,1.45375]
[1751974964551,1.6349,2577.4,2577.3,1.45375]
[1751974965954,0.6365,2577.4,2577.3,1.45375]
[1751974967852,0.6494,2577.5,2577.4,0.77594]
[1751974968050,3.2078,2577.6,2577.5,0.77591]
[1751974968245,0.6365,2577.6,2577.5,1.45371]
[1751974968446,4.69281712,2578.1,2577.5,1.5625]
[1751974968650,1.60333803,2578.0,2577.9,3.98356]
[1751974968852,1.60333803,2578.0,2577.9,6.10677626]
[1751974969549,1.60333803,2578.0,2577.9,7.42937626]
[1751974971254,0.6478,2578.4,2578.3,0.77567]
[1751974971450,3.72428635,2578.4,2578.3,0.77567]
[1751974972053,3.02748635,2578.4,2578.3,0.77567]
[1751974972254,4.72268635,2578.4,2578.3,1.42057]
[1751974972451,4.76548635,2578.4,2578.3,1.42057]
[1751974972754,4.76548635,2578.4,2578.3,0.77567]
[1751974973554,4.76548635,2578.4,2578.2,0.77568]
[1751974973555,0.77567,2578.3,2578.2,0.77568]
[1751974973753,1.47247,2578.3,2578.2,1.42058]
[1751974974956,2.51367,2578.3,2578.2,1.42058]
[1751974975856,2.51367,2578.3,2578.2,0.6449]
[1751974977059,1.93926,2578.2,2577.6,5.33101626]
[1751974977253,1.0412,2578.1,2577.6,7.27072626]
[1751974977454,0.6968,2577.7,2577.6,6.10689626]
[1751974977646,0.6968,2577.7,2577.6,6.75179626]
[1751974977852,0.6968,2577.7,2577.6,6.10689626]
[1751974978152,0.6968,2577.7,2577.6,6.75179626]
[1751974978457,0.6865,2578.0,2577.7,1.93963]
[1751974978458,1.46227,2578.0,2577.7,1.93963]
[1751974978759,1.46227,2578.0,2577.9,0.77579]
[1751974979054,2.15907,2578.0,2577.9,0.77579]
[1751974979556,1.3833,2578.0,2577.9,0.77579]
[1751974980654,2.15906,2578.0,2577.9,0.77579]
[1751974980953,1.3833,2578.0,2577.9,0.77579]
[1751974981559,2.15906,2578.0,2577.9,0.77579]
[1751974982054,3.20026,2578.0,2577.9,1.42069]
[1751974982256,3.20026,2578.0,2577.9,0.77579]
[1751974982554,1.46226,2578.0,2577.9,0.77579]
[1751974982757,3.20026,2578.0,2577.9,0.77579]
[1751974983258,0.77579,2577.9,2577.8,2.89901626]
[1751974983458,0.77579,2577.9,2577.8,0.7758]
[1751974983656,2.51379,2577.9,2577.8,1.4207]
[1751974983860,2.51379,2577.9,2577.8,0.7758]
[1751974984061,1.738,2577.9,2577.8,3.54391626]
[1751974984363,0.6968,2577.9,2577.8,3.54391626]
[1751974990657,1.47259,2577.9,2577.8,3.54391626]
[1751974990861,2.51379,2577.9,2577.8,3.54391626]
[1751974991265,1.738,2577.9,2577.8,3.54391626]
[1751974991470,2.51379,2577.9,2577.8,3.54391626]
[1751974992363,0.77579,2577.9,2577.8,2.89901626]
[1751974992555,2.51379,2577.9,2577.8,3.54391626]
[1751974992763,2.51379,2577.9,2577.8,2.89901626]
[1751974992959,0.6865,2578.0,2577.9,0.77579]
[1751974993362,2.15906,2578.0,2577.9,0.77579]
[1751974993563,2.15906,2578.0,2577.9,1.42069]
[1751974994565,2.15906,2578.0,2577.9,0.6449]
[1751974995465,2.15906,2578.0,2577.9,1.42069]
[1751974995768,2.15906,2578.0,2577.9,0.6449]
[1751974996067,7.15906,2578.0,2577.9,0.6449]
[1751974996271,8.47496,2578.0,2577.9,0.6449]
[1751974996457,0.77585,2577.7,2577.6,0.77586]
[1751974997070,2.09175,2577.7,2577.6,0.77586]
[1751974998266,3.82975,2577.7,2577.6,0.77586]
[1751974998668,3.0539,2577.7,2577.6,1.42076]
[1751974998874,1.738,2577.7,2577.6,1.42076]
[1751975000069,2.51385,2577.7,2577.6,1.42076]
[1751975000370,0.6968,2577.7,2577.6,3.54397626]
[1751975000671,1.0412,2577.9,2577.6,3.54397626]
[1751975000672,1.46228,2578.0,2577.9,0.77579]
[1751975000971,4.75397651,2578.0,2577.9,0.77579]
[1751975001172,4.75397651,2578.0,2577.9,1.45499]
[1751975001965,3.06277651,2578.0,2577.9,0.77579]
[1751975002166,4.75397651,2578.0,2577.9,1.45499]
[1751975002372,0.77579,2577.9,2577.8,0.7758]
[1751975002772,2.44259,2577.9,2577.8,1.455]
[1751975003571,0.77579,2577.9,2577.8,0.7758]
[1751975003870,2.44259,2577.9,2577.8,0.7758]
[1751975005071,0.77585,2577.7,2577.6,0.77583]
[1751975006178,6.43279,2577.8,2577.2,4.61047611]
[1751975006370,0.77595,2577.5,2577.4,0.77592]
[1751975006570,0.6676,2577.6,2577.5,0.77591]
[1751975006773,0.6676,2577.6,2577.5,2.89912626]
[1751975008678,1.3176,2577.6,2577.5,2.89912626]
[1751975009172,1.3176,2577.6,2577.5,3.57832626]
[1751975011779,2.09348,2577.6,2577.5,3.57832626]
[1751975011974,2.09348,2577.6,2577.5,2.89912626]
[1751975012274,1.3176,2577.6,2577.5,3.57832626]
[1751975012481,1.3176,2577.6,2577.5,2.89912626]
[1751975012680,1.3176,2577.6,2577.5,3.57832626]
[1751975012980,2.09348,2577.6,2577.5,2.89912626]
[1751975013177,0.77581,2577.9,2577.5,3.57832626]
[1751975013382,1.0168,2578.0,2577.9,0.77579]
[1751975013583,1.60139437,2578.0,2577.9,2.89900626]
[1751975014180,0.77574,2578.1,2578.0,0.77576]
[1751975014381,1.42574,2578.1,2578.0,0.77576]
[1751975015083,3.02693826,2578.1,2578.0,0.77576]
[1751975015276,1.42574,2578.1,2578.0,0.77576]
[1751975015676,3.02688524,2578.1,2578.0,0.77576]
[1751975015878,0.77576,2578.0,2577.9,2.89898626]
[1751975016978,1.42576,2578.0,2577.9,3.57818626]
[1751975017782,1.42576,2578.0,2577.9,2.89898626]
[1751975018179,1.42576,2578.0,2577.9,3.57818626]
[1751975020785,0.65,2578.0,2577.9,3.57818626]
[1751975020981,0.77575,2578.1,2578.0,0.77576]
[1751975021180,1.42575,2578.1,2578.0,1.45496]
[1751975021381,0.77575,2578.1,2578.0,1.45496]
[1751975021582,1.41793,2578.2,2578.1,0.77573]
[1751975021782,3.66769441,2578.2,2578.1,1.45493]
[1751975021985,3.01769441,2578.2,2578.1,2.89894626]
[1751975022487,4.68449441,2578.2,2578.1,3.57814626]
[1751975022783,4.68449441,2578.2,2578.1,2.89894626]
[1751975022980,4.68449441,2578.2,2578.1,2.12321626]
[1751975023185,4.68449441,2578.2,2578.1,2.80241626]
[1751975024089,4.68449441,2578.2,2578.1,3.57814626]
[1751975024385,4.68449441,2578.2,2578.1,1.45493]
[1751975030597,2.06793,2578.2,2578.1,3.57814626]
[1751975031496,3.08473,2578.2,2578.1,3.57814626]
[1751975031892,1.41793,2578.2,2578.1,2.89894626]
[1751975032094,2.11753,2578.2,2578.1,3.58944626]
[1751975032590,3.10853,2578.2,2578.1,3.58944626]
[1751975032794,3.10853,2578.2,2578.1,2.89894626]
[1751975032993,3.10853,2578.2,2578.1,3.58944626]
[1751975033398,3.10853,2578.2,2578.1,2.89894626]
[1751975033598,3.10853,2578.2,2578.1,3.58944626]
[1751975035998,0.991,2578.6,2578.3,0.77567]
[1751975036200,2.22983682,2578.5,2578.4,0.77564]
[1751975036500,48.26607712,2579.1,2578.8,0.7755]
[1751975036695,1.3375,2578.9,2578.8,1.466]
[1751975036901,2.92907765,2578.9,2578.8,2.89871626]
[1751975037490,1.3375,2578.9,2578.8,2.89871626]
[1751975037696,1.3375,2578.9,2578.8,3.58921626]
[1751975038197,3.2078,2579.1,2579.0,0.77546]
[1751975038395,6.19513473,2579.1,2579.0,0.6905]
[1751975038599,0.77546,2579.0,2578.9,0.77547]
[1751975039000,0.77546,2579.0,2578.9,0.6905]
[1751975040302,0.77546,2579.0,2578.9,1.46597]
[1751975041801,2.46606,2579.0,2578.9,0.77547]
[1751975041994,0.77546,2579.0,2578.9,0.77547]
[1751975042195,1.47506,2579.0,2578.9,1.46597]
[1751975042404,1.47506,2579.0,2578.9,0.77547]
[1751975042798,0.6996,2579.0,2578.9,1.46597]
[1751975043002,0.6996,2579.0,2578.9,0.77547]
[1751975043201,0.6996,2579.0,2578.9,1.46597]
[1751975045607,4.68034,2579.1,2578.9,2.07196639]
[1751975045807,1.81206862,2579.1,2578.9,2.07196639]
[1751975046006,0.991,2579.2,2578.9,2.07196639]
[1751975046210,5.42206693,2579.1,2579.0,3.50467265]
[1751975046410,6.12166693,2579.1,2579.0,4.19517265]
[1751975046702,5.34623693,2579.1,2579.0,4.19517265]
[1751975046912,0.6996,2579.1,2579.0,4.19517265]
[1751975047809,0.6996,2579.1,2579.0,5.17367265]
[1751975048110,0.6996,2579.1,2579.0,4.19517265]
[1751975048507,0.6996,2579.1,2579.0,3.46481008]
[1751975048808,0.6996,2579.1,2579.0,7.36311008]
[1751975049410,1.47503,2579.1,2579.0,6.67261008]
[1751975049607,0.6996,2579.1,2579.0,6.10647626]
[1751975050001,1.76644,2579.1,2579.0,3.2078]
[1751975050206,1.93875,2578.9,2578.7,3.2078]
[1751975050406,0.77562,2578.5,2578.4,3.2078]
[1751975050912,0.77568,2578.4,2578.3,0.77565]
[1751975051209,2.07268,2578.4,2578.3,0.77565]
[1751975052207,0.77571,2578.3,2578.2,0.77569]
[1751975052505,4.43191,2578.3,2578.2,0.77569]
[1751975053308,3.6562,2578.3,2578.2,0.77569]
[1751975053507,2.3592,2578.3,2578.2,3.58940626]
[1751975053709,0.77559,2578.6,2578.5,0.77559]
[1751975054013,1.47519,2578.6,2578.5,6.10660626]
[1751975054206,0.6996,2578.6,2578.5,6.10660626]
[1751975055807,0.6996,2578.6,2578.5,6.79710626]
[1751975056115,3.09607167,2578.6,2578.5,6.79710626]
[1751975056312,2.81569,2578.6,2578.5,6.79710626]
[1751975057611,2.81569,2578.6,2578.5,4.67389]
[1751975058113,3.80669,2578.6,2578.5,4.67389]
[1751975060308,2.0401,2578.6,2578.5,1.46609]
[1751975060911,3.80669,2578.6,2578.5,1.46609]
[1751975062006,1.3405,2578.6,2578.5,2.89880626]
[1751975062214,0.64,2578.7,2578.5,2.89880626]
[1751975062215,1.41556,2578.7,2578.6,0.77559]
[1751975062515,2.05256,2578.7,2578.6,1.45449]
[1751975062915,2.05256,2578.7,2578.6,0.77559]
[1751975063214,2.05256,2578.7,2578.6,1.45449]
[1751975063609,2.05256,2578.7,2578.6,0.77559]
[1751975063807,3.09806,2578.7,2578.6,0.77559]
[1751975064413,3.09806,2578.7,2578.6,1.45449]
[1751975064613,3.09806,2578.7,2578.6,0.77559]
[1751975064916,3.09806,2578.7,2578.6,1.45449]
[1751975067613,0.77562,2578.6,2578.5,0.77559]
[1751975067917,0.77562,2578.5,2578.4,4.66232]
[1751975068110,1.41262,2578.5,2578.4,4.66232]
[1751975071819,1.41262,2578.5,2578.4,6.78553626]
[1751975072013,0.77562,2578.5,2578.4,6.10663626]
[1751975072418,1.41262,2578.5,2578.4,6.78553626]
[1751975075720,0.637,2578.5,2578.4,6.78553626]
[1751975076017,1.46840998,2578.7,2578.4,6.00991626]
[1751975076318,0.77562,2578.6,2578.5,0.77559]
[1751975076519,1.41262,2578.6,2578.5,1.45449]
[1751975076720,0.77562,2578.6,2578.5,1.45449]
[1751975076919,1.41262,2578.6,2578.5,1.45449]
[1751975077109,0.77562,2578.6,2578.5,1.45449]
[1751975077314,1.41262,2578.6,2578.5,1.45449]
[1751975078017,1.41262,2578.6,2578.5,2.45769]
[1751975079020,1.41262,2578.6,2578.5,1.45449]
[1751975079320,2.04632,2578.6,2578.5,1.45449]
[1751975080915,2.04632,2578.6,2578.5,2.45769]
[1751975081922,1.40932,2578.6,2578.5,0.77559]
[1751975082117,2.04632,2578.6,2578.5,1.45449]
[1751975082318,1.40932,2578.6,2578.5,0.77562]
[1751975082519,2.04632,2578.6,2578.5,1.45452]
[1751975082817,1.40932,2578.6,2578.5,1.45452]
[1751975083018,2.04632,2578.6,2578.5,1.45452]
[1751975083421,2.04632,2578.6,2578.5,2.45772]
[1751975090230,3.58542917,2578.6,2578.5,2.45772]
[1751975092030,2.94842917,2578.6,2578.5,2.42342]
[1751975092233,3.59502917,2578.6,2578.5,2.42342]
[1751975092433,3.59502917,2578.6,2578.5,2.42162]
[1751975092730,2.94842917,2578.6,2578.5,2.42162]
[1751975092931,3.59502917,2578.6,2578.5,2.42162]
[1751975093531,2.94842917,2578.6,2578.5,2.42162]
[1751975093730,3.59502917,2578.6,2578.5,1.42022]
[1751975096035,3.59502917,2578.6,2578.5,2.42162]
[1751975097128,3.59499917,2578.6,2578.5,2.42162]
[1751975098934,3.59499917,2578.6,2578.5,1.42022]
[1751975101741,3.59499917,2578.6,2578.5,2.42162]
[1751975102039,2.94839917,2578.6,2578.5,0.77562]
[1751975102441,3.59499917,2578.6,2578.5,2.42162]
[1751975103042,2.94839917,2578.6,2578.5,2.42162]
[1751975103441,3.59499917,2578.6,2578.5,2.42162]
[1751975103642,3.59499917,2578.6,2578.5,1.42022]
[1751975104241,2.81940917,2578.6,2578.5,2.42162]
[1751975104639,3.59499917,2578.6,2578.5,2.42162]
[1751975105638,3.59499917,2578.6,2578.5,1.42022]
[1751975106143,3.59499917,2578.6,2578.5,2.42162]
[1751975108648,1.53910917,2578.6,2578.5,2.42162]
[1751975108849,2.31469917,2578.6,2578.5,2.42162]
[1751975110249,1.53910917,2578.6,2578.5,2.42162]
[1751975110444,2.31469917,2578.6,2578.5,2.42162]
[1751975110951,1.53910917,2578.6,2578.5,2.42162]
[1751975111456,2.31469917,2578.6,2578.5,2.42162]
[1751975111658,1.53910917,2578.6,2578.5,2.42162]
[1751975111953,1.53910917,2578.6,2578.5,0.77562]
[1751975112159,1.53910917,2578.6,2578.5,2.42162]
[1751975112356,2.31469917,2578.6,2578.5,2.42162]
[1751975112558,2.31469917,2578.6,2578.5,0.77562]
[1751975112759,2.31469917,2578.6,2578.5,2.42162]
[1751975114460,1.53910917,2578.6,2578.5,2.42162]
[1751975115356,3.48593904,2579.1,2578.6,1.93897]
[1751975115357,2.31961712,2579.1,2578.6,1.93897]
[1751975115557,1.42416,2579.1,2579.0,0.77547]
[1751975115763,3.64660035,2579.1,2579.0,0.77547]
[1751975115961,3.64660035,2579.1,2579.0,1.41117]
[1751975116158,0.7755,2578.9,2578.8,3.2078]
[1751975116353,0.7755,2578.9,2578.6,1.93898]
[1751975116354,1.57584035,2578.9,2578.6,1.93898]
[1751975116663,0.77547,2579.0,2578.9,0.7755]
[1751975116852,2.35050841,2579.0,2578.9,0.7755]
[1751975117052,0.7755,2578.9,2578.8,0.77551]
[1751975117260,2.35053841,2578.9,2578.8,0.77551]
[1751975118860,2.99713841,2578.9,2578.8,1.42011]
[1751975119760,0.77553,2578.8,2578.7,0.77554]
[1751975119964,3.02926841,2578.8,2578.7,1.42014]
[1751975120556,3.68836841,2578.8,2578.7,1.42014]
[1751975120764,3.02926841,2578.8,2578.7,1.42014]
[1751975120965,3.68836841,2578.8,2578.7,1.42014]
[1751975121365,3.68836841,2578.8,2578.7,2.42154]
[1751975121866,30.04236841,2578.8,2578.7,2.42154]
[1751975122067,29.38326841,2578.8,2578.7,1.47354]
[1751975122262,29.38326841,2578.8,2578.7,0.77554]
[1751975122466,30.04236841,2578.8,2578.7,1.47354]
[1751975122667,29.38326841,2578.8,2578.7,1.47354]
[1751975122868,30.04236841,2578.8,2578.7,1.47354]
[1751975123767,30.04236841,2578.8,2578.7,2.47534]
[1751975124866,29.26683841,2578.8,2578.7,2.47534]
[1751975125062,27.92903841,2578.8,2578.7,4.59855626]
[1751975125262,1.57503841,2578.8,2578.7,4.59855626]
[1751975125466,1.44858,2579.0,2578.9,0.7755]
[1751975125666,29.37974332,2579.0,2578.9,1.4735]
[1751975125971,30.03884332,2579.0,2578.9,2.4753]
[1751975126166,0.7755,2578.9,2578.8,3.2078]
[1751975126365,0.7755,2578.9,2578.7,0.77555]
[1751975126366,0.77553,2578.8,2578.7,0.77555]
[1751975126567,2.35469332,2578.8,2578.7,1.47355]
[1751975126869,3.69809332,2578.8,2578.7,1.47355]
[1751975127570,4.35719332,2578.8,2578.7,0.698]
[1751975127764,0.77559,2578.6,2578.5,1.0018]
[1751975127964,1.43469,2578.6,2578.5,1.4736]
[1751975128165,2.35499328,2578.6,2578.5,1.4736]
[1751975128472,4.35749328,2578.6,2578.5,1.4736]
[1751975130170,4.35749328,2578.6,2578.5,0.7756]
[1751975130371,0.77565,2578.5,2578.4,0.77563]
[1751975130571,2.07505,2578.5,2578.4,1.47363]
[1751975130765,2.07505,2578.5,2578.4,1.47365]
[1751975131274,4.31353262,2578.5,2578.4,1.47365]
[1751975132074,3.65443262,2578.5,2578.4,0.77565]
[1751975132269,3.65443262,2578.5,2578.4,1.47365]
[1751975132468,4.31353262,2578.5,2578.4,2.47545]
[1751975132664,4.31350262,2578.5,2578.4,2.47545]
[1751975132964,2.35500262,2578.5,2578.4,4.59866626]
[1751975133365,1.57938262,2578.5,2578.4,4.59866626]
[1751975133974,1.57938262,2578.5,2578.4,7.80646626]
[1751975134277,0.77551,2578.9,2578.8,0.77553]
[1751975134577,27.94270652,2578.9,2578.8,4.59854626]
[1751975135368,28.71820652,2578.9,2578.8,4.59854626]
[1751975135574,29.37730652,2578.9,2578.8,4.59854626]
[1751975135772,2.23880652,2578.9,2578.8,4.59854626]
[1751975136076,28.60480652,2578.9,2578.8,4.59854626]
[1751975136377,29.38030652,2578.9,2578.8,4.59854626]
[1751975140178,27.8006,2578.9,2578.8,4.59854626]
[1751975140479,29.37899801,2578.9,2578.8,4.59854626]
[1751975141079,27.8006,2578.9,2578.8,4.59854626]
[1751975141278,8.156,2579.1,2579.0,0.77547]
[1751975141479,37.5279404,2579.1,2579.0,4.59848626]
[1751975141680,37.5279404,2579.1,2579.0,0.698]
[1751975141874,1.93879,2578.9,2578.6,0.77558]
[1751975142083,1.43466,2578.7,2578.6,1.47358]
[1751975142779,1.43466,2578.7,2578.6,0.698]
[1751975142978,4.41305912,2578.7,2578.6,0.698]
[1751975143780,0.77562,2578.5,2578.4,3.8497]
[1751975143982,0.77562,2578.5,2578.1,3.2078]
[1751975143983,28.49121626,2578.5,2578.1,3.2078]
[1751975144173,0.77571,2578.2,2578.1,0.77572]
[1751975144378,0.77571,2578.2,2578.1,2.47552]
[1751975144680,1.43481,2578.2,2578.1,0.698]
[1751975144878,0.7758,2578.0,2577.8,3.2078]
[1751975145182,0.6591,2578.0,2577.9,3.59701626]
[1751975145478,27.0471,2578.0,2577.9,3.59701626]
[1751975146274,27.0471,2578.0,2577.9,4.96441626]
[1751975148390,26.388,2578.0,2577.9,4.26641626]
[1751975148589,26.388,2578.0,2577.9,5.96621626]
[1751975149191,27.82287,2578.0,2577.9,2.4756]
[1751975149484,27.82287,2578.0,2577.9,1.6998]
[1751975149784,0.7758,2577.9,2577.8,3.98361]
[1751975149985,1.4565,2577.9,2577.8,4.68161]
[1751975150185,0.6807,2577.9,2577.8,4.68161]
[1751975150386,0.6807,2577.9,2577.8,5.68341]
[1751975150587,1.3444,2577.9,2577.8,5.68341]
[1751975151993,1.3444,2577.9,2577.8,5.64331]
[1751975152293,0.6807,2577.9,2577.8,3.98361]
[1751975152482,1.3444,2577.9,2577.8,5.64051]
[1751975152885,0.6807,2577.9,2577.8,5.64051]
[1751975153284,1.3444,2577.9,2577.8,5.64051]
[1751975153487,0.6807,2577.9,2577.8,5.64051]
[1751975153789,1.3444,2577.9,2577.8,5.64051]
[1751975153987,2.1202,2577.9,2577.8,5.64051]
[1751975156288,2.1202,2577.9,2577.8,4.64151]
[1751975159292,2.1202,2577.9,2577.8,1.43371]
[1751975160188,2.1202,2577.9,2577.8,2.43271]
[1751975160394,28.5102,2577.9,2577.8,2.43271]
[1751975161897,27.8465,2577.9,2577.8,0.77581]
[1751975162099,28.5102,2577.9,2577.8,2.43271]
[1751975162792,27.8465,2577.9,2577.8,2.43271]